bitfinex-derivatives/quotes_BTCF0:USTF0_20250904
["timestamp","ask_amount","ask_price","bid_price","bid_amount"]
[1756963345471,0.40924265,110790.0,110780.0,1.3481901]
[1756963345680,0.72924265,110790.0,110780.0,1.3481901]
[1756963346074,0.38525265,110790.0,110780.0,1.3481901]
[1756963346279,0.02445265,110790.0,110780.0,1.5981901]
[1756963346479,0.40445265,110790.0,110780.0,1.22365]
[1756963346691,0.80374265,110790.0,110780.0,1.20979]
[1756963348087,0.80374265,110790.0,110780.0,0.96071]
[1756963348286,2.55190305,110790.0,110780.0,0.102]
[1756963348796,2.60018355,110790.0,110780.0,0.6524]
[1756963348987,2.60018355,110790.0,110780.0,0.93664]
[1756963350284,2.60018355,110790.0,110780.0,0.027]
[1756963350487,3.70093276,110790.0,110750.0,0.0137]
[1756963350679,2.2249504,110760.0,110750.0,4e-05]
[1756963350888,2.69166948,110760.0,110750.0,0.2342]
[1756963351188,2.72769096,110760.0,110750.0,0.2342]
[1756963351383,1.66883104,110760.0,110750.0,0.2342]
[1756963351582,2.79405319,110760.0,110750.0,0.2342]
[1756963351788,2.79405319,110760.0,110740.0,0.01457989]
[1756963351986,0.78920438,110750.0,110740.0,0.39201989]
[1756963352189,1.19518815,110750.0,110740.0,0.39191989]
[1756963352386,1.14704782,110750.0,110740.0,0.41562989]
[1756963352883,1.19518815,110750.0,110740.0,0.41562989]
[1756963353284,1.14704782,110750.0,110740.0,0.87266989]
[1756963353508,1.44842815,110750.0,110730.0,0.0001]
[1756963353683,1.91311653,110740.0,110730.0,0.0001]
[1756963353990,1.19038703,110740.0,110730.0,0.01362]
[1756963354187,1.19038703,110740.0,110730.0,0.03733]
[1756963354388,1.1422467,110740.0,110730.0,0.03733]
[1756963354890,1.1412467,110740.0,110730.0,0.03733]
[1756963355691,1.1432467,110740.0,110730.0,0.03833]
[1756963356888,1.1432467,110740.0,110730.0,0.28833]
[1756963356889,0.76817265,110740.0,110730.0,0.28833]
[1756963357095,1.1432467,110740.0,110730.0,0.28833]
[1756963358100,0.76429265,110740.0,110730.0,0.28833]
[1756963358799,1.1433067,110740.0,110730.0,0.28833]
[1756963358993,1.1433067,110740.0,110730.0,0.03833]
[1756963359200,1.1433067,110740.0,110730.0,0.87269]
[1756963359401,1.1433067,110740.0,110730.0,0.03833]
[1756963359703,1.1433067,110740.0,110730.0,0.87273]
[1756963359999,1.1433067,110740.0,110730.0,0.87325]
[1756963360197,1.1433067,110740.0,110730.0,0.03833]
[1756963360413,1.1433067,110740.0,110730.0,0.87313]
[1756963360598,1.1433067,110740.0,110730.0,0.84942]
[1756963360897,1.1433067,110740.0,110730.0,0.001]
[1756963360898,1.44144703,110740.0,110730.0,0.001]
[1756963361999,1.3933067,110740.0,110730.0,0.001]
[1756963362402,1.44127996,110740.0,110730.0,0.001]
[1756963363405,1.44127996,110740.0,110730.0,0.01564]
[1756963365299,1.44127996,110740.0,110730.0,0.04001]
[1756963366048,1.19127996,110740.0,110730.0,0.04001]
[1756963367699,1.19127996,110740.0,110730.0,0.01564]
[1756963368700,1.19127996,110740.0,110730.0,0.001]
[1756963369123,1.19127996,110740.0,110730.0,0.00096]
[1756963369304,1.1433067,110740.0,110730.0,0.00096]
[1756963369497,1.14343322,110740.0,110730.0,0.00096]
[1756963370505,1.20765965,110740.0,110730.0,0.00096]
[1756963371005,3.51537572,110740.0,110720.0,0.0002]
[1756963371202,1.86400228,110730.0,110720.0,0.0002]
[1756963371394,2.29072136,110730.0,110710.0,0.01386]
[1756963371603,0.73840057,110720.0,110710.0,0.01386]
[1756963371803,1.13089322,110720.0,110710.0,0.01366]
[1756963372300,1.17887077,110720.0,110700.0,1.92194195]
[1756963372505,0.73600057,110710.0,110700.0,2.75866195]
[1756963372810,1.10849322,110710.0,110700.0,2.75878195]
[1756963373249,1.10749322,110710.0,110700.0,2.75878195]
[1756963373405,1.15547077,110710.0,110700.0,2.75878195]
[1756963373903,1.15747077,110710.0,110700.0,2.75878195]
[1756963374300,0.7822702,110710.0,110700.0,2.75878195]
[1756963374502,0.7822702,110710.0,110700.0,3.00878195]
[1756963375603,0.7832702,110710.0,110700.0,3.00878195]
[1756963375804,0.7732702,110710.0,110700.0,3.00878195]
[1756963376403,0.7832702,110710.0,110700.0,3.00878195]
[1756963376801,0.5332702,110710.0,110700.0,3.00878195]
[1756963377006,0.7632702,110710.0,110700.0,3.38398252]
[1756963377205,0.4332702,110710.0,110700.0,3.38398252]
[1756963377409,0.8132702,110710.0,110700.0,3.38398252]
[1756963378002,0.5332702,110710.0,110700.0,3.38398252]
[1756963378205,0.4332702,110710.0,110700.0,3.38398252]
[1756963378423,0.02549265,110710.0,110700.0,5.23118423]
[1756963379308,0.02549265,110710.0,110700.0,4.98118423]
[1756963379703,0.02549265,110710.0,110700.0,4.62038423]
[1756963380006,0.02549265,110710.0,110700.0,3.42254423]
[1756963380209,0.02549265,110710.0,110700.0,4.62022423]
[1756963380409,0.40359897,110710.0,110700.0,4.62022423]
[1756963380604,0.07359897,110710.0,110700.0,4.62022423]
[1756963381717,0.44359897,110710.0,110700.0,4.62022423]
[1756963382014,0.07359897,110710.0,110700.0,4.62022423]
[1756963382305,0.02549265,110710.0,110700.0,4.87022423]
[1756963382549,0.02549265,110710.0,110700.0,4.03334423]
[1756963382709,0.44359897,110710.0,110700.0,4.86954423]
[1756963382906,0.07359897,110710.0,110700.0,4.86954423]
[1756963384212,0.07359897,110710.0,110700.0,4.86946423]
[1756963384647,0.07359897,110710.0,110700.0,3.38330252]
[1756963384648,0.37549265,110710.0,110700.0,3.38330252]
[1756963384814,0.37549265,110710.0,110700.0,3.74410252]
[1756963385120,0.34549265,110710.0,110700.0,3.74410252]
[1756963385417,0.34549265,110710.0,110700.0,3.13290252]
[1756963385716,0.36549265,110710.0,110700.0,3.13290252]
[1756963386318,0.36549265,110710.0,110700.0,2.29686252]
[1756963386513,0.36549265,110710.0,110700.0,3.38286252]
[1756963386916,0.36549265,110710.0,110700.0,2.54686252]
[1756963387117,0.36549265,110710.0,110700.0,2.75738195]
[1756963387307,0.36549265,110710.0,110700.0,3.13258252]
[1756963387308,0.41359897,110710.0,110700.0,3.13258252]
[1756963388115,0.41359897,110710.0,110700.0,3.49338252]
[1756963388817,0.41359897,110710.0,110700.0,3.13258252]
[1756963389114,0.41359897,110710.0,110700.0,3.49338252]
[1756963389317,0.36549265,110710.0,110700.0,3.49338252]
[1756963390011,0.41359897,110710.0,110700.0,2.65766252]
[1756963390216,0.41359897,110710.0,110700.0,3.49346252]
[1756963391016,0.41359897,110710.0,110700.0,2.65766252]
[1756963391215,0.41359897,110710.0,110700.0,3.49326252]
[1756963391422,0.78879954,110710.0,110700.0,2.75702195]
[1756963391924,0.41359897,110710.0,110700.0,2.75702195]
[1756963392115,0.41359897,110710.0,110700.0,2.85702195]
[1756963392314,0.4137384,110710.0,110700.0,2.85702195]
[1756963393122,0.4137384,110710.0,110700.0,2.02166195]
[1756963393625,0.36549265,110710.0,110700.0,2.85674195]
[1756963394222,0.41373624,110710.0,110700.0,2.85674195]
[1756963394922,0.77453624,110710.0,110700.0,2.85674195]
[1756963395118,0.38629265,110710.0,110700.0,2.85674195]
[1756963395320,0.75453577,110710.0,110700.0,2.85674195]
[1756963397026,0.76453577,110710.0,110700.0,2.85674195]
[1756963398418,0.76453577,110710.0,110700.0,2.02166195]
[1756963398624,0.76453577,110710.0,110700.0,2.85646195]
[1756963399223,0.71625265,110710.0,110700.0,3.23170715]
[1756963401239,0.71625265,110710.0,110700.0,1.32454715]
[1756963401827,0.71625265,110710.0,110700.0,0.97214195]
[1756963402028,0.71865265,110710.0,110700.0,0.97214195]
[1756963402230,0.71865265,110710.0,110700.0,0.97218195]
[1756963402527,0.76689577,110710.0,110700.0,0.97218195]
[1756963403229,0.71865265,110710.0,110700.0,0.97218195]
[1756963405631,0.76689577,110710.0,110700.0,0.97218195]
[1756963406446,0.71865265,110710.0,110700.0,0.97218195]
[1756963407834,0.38625265,110710.0,110700.0,0.97218195]
[1756963408033,0.75625265,110710.0,110700.0,0.97218195]
[1756963408548,0.75625265,110710.0,110700.0,1.34742715]
[1756963408735,0.71625265,110710.0,110700.0,1.34742715]
[1756963409235,0.71625265,110710.0,110700.0,0.97218195]
[1756963409435,0.71625265,110710.0,110700.0,1.34742715]
[1756963411130,0.71625265,110710.0,110700.0,1.34738715]
[1756963411526,1.09389785,110710.0,110700.0,0.13734195]
[1756963411731,1.09389785,110710.0,110700.0,0.97214195]
[1756963412237,0.71865265,110710.0,110700.0,0.97214195]
[1756963412629,0.71625265,110710.0,110700.0,0.97214195]
[1756963412835,0.71625265,110710.0,110700.0,1.34738715]
[1756963413464,0.74625265,110710.0,110700.0,1.34738715]
[1756963414042,0.74621265,110710.0,110700.0,1.34734715]
[1756963414650,0.38541265,110710.0,110700.0,0.97210195]
[1756963414851,0.38781265,110710.0,110700.0,1.34734715]
[1756963415051,0.74621265,110710.0,110700.0,1.34734715]
[1756963415742,0.74621265,110710.0,110700.0,0.97210195]
[1756963415946,0.74861265,110710.0,110700.0,0.97210195]
[1756963416348,0.38781265,110710.0,110700.0,0.97210195]
[1756963416543,0.33781265,110710.0,110700.0,1.34734715]
[1756963417054,0.69861265,110710.0,110700.0,1.34734715]
[1756963417249,0.33781265,110710.0,110700.0,1.34734715]
[1756963417453,0.69861265,110710.0,110700.0,1.34734715]
[1756963418254,0.69861265,110710.0,110700.0,0.51254715]
[1756963418457,0.69861265,110710.0,110700.0,1.34730715]
[1756963419555,0.69861265,110710.0,110700.0,0.97206195]
[1756963419755,0.69861265,110710.0,110700.0,1.34730715]
[1756963420257,0.69861265,110710.0,110700.0,0.51254715]
[1756963420557,0.69861265,110710.0,110700.0,1.34726715]
[1756963421357,0.69861265,110710.0,110700.0,0.97202195]
[1756963422171,1.07385785,110710.0,110700.0,0.97202195]
[1756963422649,1.07385785,110710.0,110700.0,0.87202195]
[1756963423950,0.69861265,110710.0,110700.0,0.87202195]
[1756963424249,1.07385785,110710.0,110700.0,0.03730195]
[1756963424448,1.07385785,110710.0,110700.0,0.87202195]
[1756963425458,1.07385785,110710.0,110700.0,0.03730195]
[1756963425959,1.07385785,110710.0,110700.0,0.87649195]
[1756963426151,1.32385785,110710.0,110700.0,0.87649195]
[1756963426352,1.32385785,110710.0,110700.0,0.85365195]
[1756963426660,1.38808428,110710.0,110700.0,0.85365195]
[1756963426859,1.39731843,110710.0,110700.0,0.85365195]
[1756963427455,1.333092,110710.0,110700.0,0.85365195]
[1756963427763,1.7083372,110710.0,110700.0,0.83999195]
[1756963427951,1.43312051,110710.0,110700.0,0.85495195]
[1756963428556,1.333092,110710.0,110700.0,0.87757195]
[1756963429565,1.00611554,110710.0,110700.0,0.87757195]
[1756963429771,1.38136074,110710.0,110700.0,0.87757195]
[1756963430472,1.39797408,110710.0,110700.0,0.87757195]
[1756963431467,1.33385943,110710.0,110700.0,0.87757195]
[1756963433364,1.38210447,110710.0,110700.0,0.87757195]
[1756963433665,1.13210447,110710.0,110700.0,0.87757195]
[1756963434285,0.75674749,110710.0,110700.0,0.87757195]
[1756963434468,1.13210447,110710.0,110700.0,0.87757195]
[1756963434967,0.75674749,110710.0,110700.0,0.87757195]
[1756963435169,1.12287032,110710.0,110700.0,0.87757195]
[1756963435768,0.74751334,110710.0,110700.0,0.87757195]
[1756963436068,1.12287032,110710.0,110700.0,0.87757195]
[1756963436266,0.74751334,110710.0,110700.0,0.87757195]
[1756963436468,1.12287032,110710.0,110700.0,0.87757195]
[1756963437257,1.13188879,110710.0,110700.0,0.87761195]
[1756963439160,0.75653181,110710.0,110700.0,0.87761195]
[1756963439367,1.13188879,110710.0,110700.0,0.87761195]
[1756963439869,0.75653181,110710.0,110700.0,0.87761195]
[1756963440068,1.13188879,110710.0,110700.0,0.87761195]
[1756963440966,1.13188879,110710.0,110700.0,0.87757195]
[1756963441861,0.75653181,110710.0,110700.0,0.87757195]
[1756963442067,1.13188879,110710.0,110700.0,0.87757195]
[1756963443668,1.08364375,110710.0,110700.0,0.87757195]
[1756963444159,1.08360375,110710.0,110700.0,0.04285195]
[1756963444363,1.13184879,110710.0,110700.0,0.87753195]
[1756963444562,1.13184879,110710.0,110700.0,0.04285195]
[1756963444762,1.13184879,110710.0,110700.0,0.87753195]
[1756963446169,1.12283032,110710.0,110700.0,0.87753195]
[1756963447472,1.12283032,110710.0,110700.0,0.04285195]
[1756963447678,0.74747334,110710.0,110700.0,1.25288893]
[1756963447870,0.74747334,110710.0,110700.0,0.87753195]
[1756963448673,0.74747334,110710.0,110700.0,1.25288893]
[1756963448867,0.74507495,110710.0,110700.0,1.50288893]
[1756963449676,0.74507495,110710.0,110700.0,1.511843]
[1756963450073,0.6968283,110710.0,110700.0,1.511843]
[1756963451980,0.6968253,110710.0,110700.0,1.511843]
[1756963452174,0.3968253,110710.0,110700.0,1.511843]
[1756963452374,0.6968253,110710.0,110700.0,0.30180602]
[1756963452577,0.3968253,110710.0,110700.0,1.511763]
[1756963452883,0.7268253,110710.0,110700.0,1.511763]
[1756963454071,0.7268253,110710.0,110700.0,0.677163]
[1756963454266,0.7268253,110710.0,110700.0,1.511763]
[1756963456780,0.3660253,110710.0,110700.0,2.24791998]
[1756963457184,0.0360253,110710.0,110700.0,2.99863394]
[1756963459085,0.0384253,110710.0,110700.0,2.63779394]
[1756963459288,0.0384253,110710.0,110700.0,1.80323394]
[1756963459289,0.3784253,110710.0,110700.0,1.80323394]
[1756963459588,0.3784253,110710.0,110700.0,1.511683]
[1756963460604,0.4084253,110710.0,110700.0,0.677163]
[1756963460781,0.4084253,110710.0,110700.0,1.511683]
[1756963461584,0.4060253,110710.0,110700.0,1.511683]
[1756963461785,0.4060253,110710.0,110700.0,1.13632602]
[1756963461982,0.4060253,110710.0,110700.0,1.511683]
[1756963462187,0.4060253,110710.0,110700.0,1.872483]
[1756963462797,0.0360253,110710.0,110700.0,1.872483]
[1756963462984,0.0360253,110710.0,110700.0,2.24783998]
[1756963463384,0.0360253,110710.0,110700.0,1.88703998]
[1756963464391,0.0260253,110710.0,110700.0,1.511683]
[1756963464595,0.0360253,110710.0,110700.0,1.872483]
[1756963464994,0.0360253,110710.0,110700.0,2.24783998]
[1756963465390,0.3460253,110710.0,110700.0,1.88703998]
[1756963465588,0.0260253,110710.0,110700.0,1.88703998]
[1756963465989,0.3360253,110710.0,110700.0,1.511683]
[1756963466295,0.3360253,110710.0,110700.0,2.24783998]
[1756963466296,0.0260253,110710.0,110700.0,2.24783998]
[1756963466487,0.3584253,110710.0,110700.0,0.04285195]
[1756963466691,0.9692253,110710.0,110700.0,1.25264893]
[1756963467701,0.6392253,110710.0,110700.0,1.25264893]
[1756963468000,0.9992253,110710.0,110700.0,1.25264893]
[1756963469709,0.3868253,110710.0,110700.0,1.25264893]
[1756963469900,0.4868253,110710.0,110700.0,1.62800591]
[1756963470198,0.6968253,110710.0,110700.0,1.62800591]
[1756963470402,0.6968253,110710.0,110700.0,1.25264893]
[1756963471891,0.6968253,110710.0,110700.0,1.62800591]
[1756963472402,0.6968253,110710.0,110700.0,1.25264893]
[1756963472603,0.3360253,110710.0,110700.0,1.25264893]
[1756963473397,0.6992253,110710.0,110700.0,1.25260893]
[1756963474701,0.6992253,110710.0,110700.0,0.87721195]
[1756963475205,0.6992253,110710.0,110700.0,1.25256893]
[1756963475500,0.6992253,110710.0,110700.0,0.87721195]
[1756963475811,0.6992253,110710.0,110700.0,1.25256893]
[1756963478405,0.70839623,110710.0,110700.0,1.25256893]
[1756963478604,0.75664288,110710.0,110700.0,1.25256893]
[1756963479204,0.74747195,110710.0,110700.0,1.25256893]
[1756963479399,0.6992253,110710.0,110700.0,1.25256893]
[1756963480208,0.74747195,110710.0,110700.0,1.25256893]
[1756963480415,0.6992253,110710.0,110700.0,1.25256893]
[1756963480810,0.6992253,110710.0,110700.0,1.24805893]
[1756963481308,0.70845871,110710.0,110700.0,1.24805893]
[1756963481807,0.6992253,110710.0,110700.0,1.24805893]
[1756963482202,0.6992253,110710.0,110700.0,0.87266195]
[1756963482428,0.6992253,110710.0,110700.0,1.24801893]
[1756963482609,0.6992253,110710.0,110700.0,1.25252893]
[1756963483003,0.6992253,110710.0,110700.0,0.87717195]
[1756963483202,0.74747195,110710.0,110700.0,0.87717195]
[1756963484311,0.75654591,110710.0,110700.0,0.04285195]
[1756963484511,0.75654591,110710.0,110700.0,0.87717195]
[1756963484710,0.74747195,110710.0,110700.0,0.87717195]
[1756963485535,0.43747195,110710.0,110700.0,1.25252893]
[1756963485818,0.78747195,110710.0,110700.0,1.25252893]
[1756963486610,0.81747195,110710.0,110700.0,1.25252893]
[1756963487110,0.81747195,110710.0,110700.0,0.87717195]
[1756963487310,0.7692253,110710.0,110700.0,0.87717195]
[1756963487515,0.7692253,110710.0,110700.0,1.25252893]
[1756963488103,0.7692253,110710.0,110700.0,0.87717195]
[1756963488308,0.7692253,110710.0,110700.0,1.25252893]
[1756963489208,0.3892253,110710.0,110700.0,1.25252893]
[1756963489510,0.7592253,110710.0,110700.0,1.25252893]
[1756963489707,0.6992253,110710.0,110700.0,1.25252893]
[1756963490301,0.07427195,110710.0,110700.0,2.62859987]
[1756963490508,0.0260253,110710.0,110700.0,3.35019987]
[1756963491504,0.0260253,110710.0,110700.0,3.34899683]
[1756963492009,0.0260253,110710.0,110700.0,3.43929923]
[1756963492312,0.0001,110730.0,110720.0,0.03731]
[1756963492507,0.0001,110730.0,110720.0,1.60860622]
[1756963492508,0.11,110730.0,110720.0,1.60860622]
[1756963492759,0.1,110730.0,110720.0,1.60864622]
[1756963493715,0.002,110730.0,110720.0,1.60864622]
[1756963493918,0.114,110730.0,110720.0,1.60964622]
[1756963495210,0.114,110730.0,110720.0,1.85964622]
[1756963495404,0.004,110730.0,110720.0,2.23434244]
[1756963495613,0.004,110730.0,110720.0,3.43554098]
[1756963495864,0.004,110730.0,110720.0,3.44554098]
[1756963496714,0.004,110730.0,110720.0,3.19546098]
[1756963496915,0.004,110730.0,110720.0,3.53546098]
[1756963497410,0.004,110730.0,110720.0,3.80066098]
[1756963499119,0.004,110730.0,110720.0,3.02440148]
[1756963499619,0.004,110730.0,110720.0,3.60936148]
[1756963500021,0.004,110730.0,110720.0,3.60932148]
[1756963500213,0.004,110730.0,110720.0,2.93411538]
[1756963500414,0.004,110730.0,110720.0,3.76891538]
[1756963500723,0.004,110730.0,110720.0,3.85920148]
[1756963500908,0.004,110730.0,110720.0,3.76891538]
[1756963502323,0.004,110730.0,110720.0,2.93411538]
[1756963502522,0.004,110730.0,110720.0,3.76883538]
[1756963502912,0.004,110730.0,110720.0,3.85912148]
[1756963503319,0.004,110730.0,110720.0,3.02440148]
[1756963503717,0.004,110730.0,110720.0,3.85868148]
[1756963504165,0.00388,110730.0,110720.0,3.85868148]
[1756963506421,0.00388,110730.0,110720.0,3.85848148]
[1756963508336,0.00388,110730.0,110720.0,3.86299148]
[1756963510225,0.0001,110750.0,110740.0,0.03813]
[1756963510447,0.3608,110770.0,110760.0,0.03813]
[1756963510448,0.3633,110770.0,110760.0,0.03813]
[1756963510625,0.72604656,110770.0,110760.0,1.24722622]
[1756963511320,0.97604656,110770.0,110760.0,1.24722622]
[1756963511628,0.97604656,110770.0,110760.0,1.25623256]
[1756963511826,0.97604656,110770.0,110760.0,0.03813]
[1756963512029,0.97604656,110770.0,110760.0,1.24722622]
[1756963513379,1.35110278,110770.0,110760.0,0.87213]
[1756963513624,1.35510278,110770.0,110760.0,0.84937]
[1756963513827,1.35510278,110770.0,110760.0,0.87313]
[1756963514226,1.35410278,110770.0,110760.0,0.04013]
[1756963514427,1.35410278,110770.0,110760.0,0.836]
[1756963514725,1.40234943,110770.0,110760.0,0.836]
[1756963515331,1.35410278,110770.0,110760.0,0.836]
[1756963515628,1.35410278,110770.0,110760.0,0.8345]
[1756963515629,1.40234943,110770.0,110760.0,0.8345]
[1756963516131,1.40234943,110770.0,110760.0,0.83446]
[1756963516636,1.40234943,110770.0,110760.0,0.0005]
[1756963516828,1.40234943,110770.0,110760.0,0.83446]
[1756963517330,1.35410278,110770.0,110760.0,0.0005]
[1756963517634,0.97904656,110770.0,110760.0,0.87259]
[1756963517834,1.0270999,110770.0,110760.0,0.84883]
[1756963518022,1.40215612,110770.0,110760.0,0.84883]
[1756963518222,1.35410278,110770.0,110760.0,0.84883]
[1756963518726,1.40218446,110770.0,110760.0,0.87259]
[1756963518927,1.35410278,110770.0,110760.0,0.87259]
[1756963519132,1.35410278,110770.0,110760.0,0.84883]
[1756963519334,1.35410278,110770.0,110760.0,0.87259]
[1756963519522,1.35410278,110770.0,110760.0,0.84883]
[1756963519834,0.97904656,110770.0,110760.0,0.84883]
[1756963520037,1.35410278,110770.0,110760.0,0.84883]
[1756963520638,2.47927144,110770.0,110760.0,0.0005]
[1756963520831,2.47927144,110770.0,110750.0,0.0002]
[1756963521030,1.94153274,110760.0,110750.0,0.0002]
[1756963521223,2.5643793,110760.0,110740.0,2.76029]
[1756963521426,0.80008303,110750.0,110740.0,1.92237]
[1756963521627,0.80008303,110750.0,110740.0,2.74576]
[1756963521628,1.19292959,110750.0,110740.0,2.74576]
[1756963523338,1.12870278,110750.0,110740.0,2.74576]
[1756963523732,1.12870278,110750.0,110740.0,2.74876]
[1756963523933,1.12870278,110750.0,110740.0,2.76313]
[1756963524134,1.12970278,110750.0,110740.0,2.76413]
[1756963524347,1.13070278,110750.0,110740.0,2.76413]
[1756963525224,1.13070278,110750.0,110740.0,2.76357]
[1756963525430,1.13070278,110750.0,110740.0,2.76808]
[1756963526332,1.13070278,110750.0,110740.0,1.93068]
[1756963526541,1.19492959,110750.0,110740.0,2.76792]
[1756963526737,0.82087337,110750.0,110740.0,2.76492]
[1756963526939,1.19592959,110750.0,110740.0,2.76592]
[1756963527333,0.75664656,110750.0,110740.0,1.92768]
[1756963527640,1.13270278,110750.0,110740.0,2.76492]
[1756963527941,1.13570278,110750.0,110740.0,2.76492]
[1756963528237,0.76064656,110750.0,110740.0,2.76492]
[1756963528435,1.13570278,110750.0,110740.0,2.76492]
[1756963528836,0.76064656,110750.0,110740.0,2.76492]
[1756963529039,1.13570278,110750.0,110740.0,2.76492]
[1756963529343,0.76064656,110750.0,110740.0,2.76492]
[1756963529554,1.13570278,110750.0,110740.0,0.88088]
[1756963530943,1.13570278,110750.0,110740.0,0.8804]
[1756963531245,0.76064656,110750.0,110740.0,0.8804]
[1756963531538,1.13570278,110750.0,110740.0,0.8804]
[1756963531743,0.76064656,110750.0,110740.0,0.8804]
[1756963531944,1.18382164,110750.0,110740.0,0.8804]
[1756963532245,1.18382086,110750.0,110740.0,0.8804]
[1756963532440,0.80876464,110750.0,110740.0,0.8804]
[1756963532644,1.18382086,110750.0,110740.0,0.8804]
[1756963532843,0.80876464,110750.0,110740.0,0.8804]
[1756963533150,1.18382086,110750.0,110740.0,0.8804]
[1756963533336,0.81382086,110750.0,110740.0,0.8804]
[1756963534341,0.81389086,110750.0,110740.0,0.88036]
[1756963535334,0.81389086,110750.0,110740.0,0.0436]
[1756963535541,0.81389086,110750.0,110740.0,0.88024]
[1756963537542,0.43876464,110750.0,110740.0,1.25529622]
[1756963537845,0.43876464,110750.0,110740.0,1.50529622]
[1756963540440,0.39064656,110750.0,110740.0,1.50529622]
[1756963542849,0.39064656,110750.0,110740.0,1.13024]
[1756963543042,0.39064656,110750.0,110740.0,1.50529622]
[1756963543442,0.43883464,110750.0,110740.0,1.50437622]
[1756963544043,0.39071656,110750.0,110740.0,1.50437622]
[1756963544243,0.39064656,110750.0,110740.0,1.50437622]
[1756963544445,0.39064656,110750.0,110740.0,1.50429622]
[1756963547347,0.02984656,110750.0,110740.0,1.50429622]
[1756963547949,0.39064656,110750.0,110740.0,1.50429622]
[1756963549346,0.02984656,110750.0,110740.0,1.50429622]
[1756963549546,0.07796464,110750.0,110740.0,1.86509622]
[1756963549744,0.02984656,110750.0,110740.0,1.86509622]
[1756963551556,0.02984656,110750.0,110740.0,1.86486986]
[1756963552057,0.02984656,110750.0,110740.0,1.95513996]
[1756963552351,0.02984656,110750.0,110740.0,1.86486986]
[1756963552760,0.02984656,110750.0,110740.0,1.86434986]
[1756963553655,0.02984656,110750.0,110740.0,1.02922986]
[1756963553957,0.02984656,110750.0,110740.0,1.25314986]
[1756963554348,0.39064656,110750.0,110740.0,0.41842986]
[1756963554553,0.39071656,110750.0,110740.0,0.41842986]
[1756963554754,0.39071656,110750.0,110740.0,1.25294986]
[1756963555148,0.39071656,110750.0,110740.0,0.0436]
[1756963555149,0.76554642,110750.0,110740.0,0.0436]
[1756963555354,0.64071656,110750.0,110740.0,0.87808]
[1756963555554,0.64071656,110750.0,110740.0,0.0436]
[1756963555754,0.64071656,110750.0,110740.0,0.87796]
[1756963556560,0.64071656,110750.0,110740.0,1.25278986]
[1756963559166,0.39071656,110750.0,110740.0,1.25278986]
[1756963560258,0.39071656,110750.0,110740.0,0.41842986]
[1756963560459,0.39071656,110750.0,110740.0,0.87788]
[1756963560660,0.39071656,110750.0,110740.0,1.25270986]
[1756963563976,0.39071656,110750.0,110740.0,0.41842986]
[1756963564474,0.39071656,110750.0,110740.0,1.25270986]
[1756963565072,0.72071656,110750.0,110740.0,0.41842986]
[1756963565265,0.72071656,110750.0,110740.0,0.0436]
[1756963565466,1.3936645,110750.0,110740.0,0.87788]
[1756963566385,0.75876464,110750.0,110740.0,1.25270986]
[1756963566570,0.71064656,110750.0,110740.0,1.25270986]
[1756963567176,0.34984656,110750.0,110740.0,1.25270986]
[1756963567775,0.34984656,110750.0,110740.0,1.50270986]
[1756963567776,0.08984656,110750.0,110740.0,1.50270986]
[1756963567984,0.07796464,110750.0,110740.0,1.50270986]
[1756963568173,0.02984656,110750.0,110740.0,1.50270986]
[1756963568778,0.02984656,110750.0,110740.0,1.59298006]
[1756963569196,0.02984656,110750.0,110740.0,1.95378006]
[1756963570279,0.02984656,110750.0,110740.0,1.02922986]
[1756963570476,0.02984656,110750.0,110740.0,1.86346986]
[1756963572172,0.02984656,110750.0,110740.0,1.02922986]
[1756963572471,0.02984656,110750.0,110740.0,1.86346986]
[1756963572881,0.02984656,110750.0,110740.0,2.12866986]
[1756963574182,0.02984656,110750.0,110740.0,2.21894006]
[1756963576188,0.02984656,110750.0,110740.0,3.67342964]
[1756963576380,0.0001,110770.0,110760.0,0.03733]
[1756963576579,0.40891808,110780.0,110770.0,0.03733]
[1756963576785,0.77891808,110780.0,110770.0,0.41215986]
[1756963577084,0.41811808,110780.0,110770.0,0.41215986]
[1756963577279,0.37007,110780.0,110770.0,0.41215986]
[1756963577586,0.37,110780.0,110770.0,0.41666986]
[1756963577777,0.04,110780.0,110770.0,0.41666986]
[1756963577973,0.04,110780.0,110770.0,2.32430986]
[1756963579179,0.041,110780.0,110770.0,2.32430986]
[1756963579592,0.041,110780.0,110770.0,2.33314194]
[1756963580177,0.042,110780.0,110770.0,2.33414194]
[1756963580386,0.002,110780.0,110770.0,2.33414194]
[1756963580789,0.022,110780.0,110770.0,2.33514194]
[1756963581483,0.002,110780.0,110770.0,2.33514194]
[1756963581686,0.002,110780.0,110770.0,2.8002175]
[1756963582186,0.002,110780.0,110770.0,3.81808806]
[1756963582606,0.3609,110800.0,110790.0,0.03733]
[1756963582786,0.7208,110800.0,110790.0,0.41215986]
[1756963582990,0.72087,110800.0,110790.0,0.41215986]
[1756963583288,0.72087,110800.0,110790.0,1.24619986]
[1756963583790,0.72087,110800.0,110790.0,0.03733]
[1756963583990,0.72087,110800.0,110790.0,2.37064944]
[1756963584194,0.72387,110800.0,110790.0,2.37364944]
[1756963584387,0.72387,110800.0,110790.0,2.37360944]
[1756963585092,0.72287,110800.0,110790.0,1.53864944]
[1756963585290,0.72287,110800.0,110790.0,2.37260944]
[1756963585589,0.72287,110800.0,110790.0,0.03933]
[1756963585795,0.72287,110800.0,110790.0,2.37260944]
[1756963586484,0.72287,110800.0,110790.0,1.24807986]
[1756963586683,0.97287,110800.0,110790.0,0.41415986]
[1756963586880,0.97187,110800.0,110790.0,0.41215986]
[1756963587081,0.97187,110800.0,110790.0,1.24807986]
[1756963587082,0.97287,110800.0,110790.0,1.24807986]
[1756963588291,0.99552122,110800.0,110790.0,1.24807986]
[1756963588496,0.99552122,110800.0,110790.0,0.41415986]
[1756963588788,1.37035108,110800.0,110790.0,0.85029]
[1756963588995,1.41846916,110800.0,110790.0,0.00196]
[1756963589193,2.18215874,110800.0,110790.0,0.00196]
[1756963589495,2.30197876,110800.0,110790.0,0.00196]
[1756963589790,2.31825981,110800.0,110780.0,0.0002]
[1756963589987,1.49931944,110790.0,110780.0,0.0002]
[1756963590186,0.3608,110780.0,110770.0,0.83855]
[1756963590395,1.13828108,110780.0,110770.0,0.83835]
[1756963590693,1.38828108,110780.0,110770.0,0.83835]
[1756963591690,1.38928108,110780.0,110770.0,0.83835]
[1756963592197,1.43733327,110780.0,110770.0,0.83835]
[1756963592393,1.39028108,110780.0,110770.0,0.00651]
[1756963592601,1.1280328,110780.0,110770.0,0.00651]
[1756963592801,1.20854066,110780.0,110770.0,0.00651]
[1756963593496,3.16691024,110780.0,110770.0,0.00651]
[1756963593798,0.5837108,110780.0,110770.0,0.00651]
[1756963593988,0.85998894,110780.0,110770.0,0.002]